bitfinex/quotes_ETHUSD_20220109
["timestamp","ask_amount","ask_price","bid_price","bid_amount"]
[1641729250561,2.39809072,3126.9,3126.4,0.75431047]
[1641729251107,2.39809072,3126.9,3126.5,0.00113685]
[1641729251708,3.19815072,3126.9,3126.5,0.00113685]
[1641729252206,1.59805072,3126.9,3126.5,0.00113685]
[1641729253005,1.59805072,3126.9,3126.5,0.30113685]
[1641729253206,1.59805072,3126.9,3126.5,0.00113685]
[1641729254654,1.59805072,3126.9,3126.6,0.07994]
[1641729255856,3.19816072,3126.9,3126.6,0.07994]
[1641729256054,3.19816072,3126.9,3126.5,0.00113685]
[1641729256856,3.99823072,3126.9,3126.5,0.00113685]
[1641729258504,0.80008,3126.8,3126.5,0.00113685]
[1641729258707,1.60017,3126.8,3126.5,0.00113685]
[1641729258907,3.2003857,3126.8,3126.5,0.00113685]
[1641729259106,2.4002957,3126.8,3126.5,0.00113685]
[1641729259704,2.4002957,3126.8,3126.1,0.07994]
[1641729259705,2.4002957,3126.8,3126.3,0.00227369]
[1641729259906,0.80013,3126.6,3126.3,0.00227369]
[1641729260104,0.80013,3126.6,3126.3,2.72612637]
[1641729260404,2.39810072,3126.9,3126.4,0.77905497]
[1641729260805,2.39810072,3126.9,3126.5,0.00113685]
[1641729261005,0.8001,3126.8,3126.5,0.00113685]
[1641729261207,1.60022,3126.8,3126.5,2.72726322]
[1641729261409,1.60022,3126.8,3126.5,2.72612637]
[1641729262060,1.56264235,3126.9,3126.4,0.72694727]
[1641729262260,2.36271235,3126.9,3126.4,0.72694727]
[1641729262461,2.36271235,3126.9,3126.6,2.72612637]
[1641729262961,0.80012,3126.8,3126.6,2.72612637]
[1641729263164,1.56264235,3126.9,3126.5,2.72726322]
[1641729263463,1.5615055,3126.9,3126.5,3.02726322]
[1641729263762,1.5615055,3126.9,3126.6,0.69409917]
[1641729264064,1.5615055,3126.9,3126.6,0.99409917]
[1641729264661,1.5615055,3126.9,3126.7,2.72612637]
[1641729266907,2.3615555,3126.9,3126.7,2.72612637]
[1641729267607,1.5615055,3126.9,3126.7,2.72612637]
[1641729268809,1.0,3127.2,3126.7,2.72612637]
[1641729269012,2.3999942,3127.3,3126.7,2.72612637]
[1641729269213,0.00227369,3127.1,3126.7,2.72612637]
[1641729269657,0.80170527,3127.0,3126.7,2.72612637]
[1641729270058,0.00113685,3126.9,3126.7,2.72612637]
[1641729272463,0.00113685,3126.9,3126.7,1.12505045]
[1641729272871,0.00113685,3126.9,3126.6,0.63528788]
[1641729274106,0.00113685,3126.9,3126.6,0.55534788]
[1641729275609,1.60119685,3126.9,3126.6,0.55534788]
[1641729275806,2.40124685,3126.9,3126.6,0.55534788]
[1641729276008,0.80115685,3126.9,3126.6,0.55534788]
[1641729276207,1.60107592,3126.7,3126.6,0.55534788]
[1641729276808,1.60107592,3126.7,3126.6,9.50534788]
[1641729277262,1.60107592,3126.7,3126.6,10.71936251]
[1641729277455,1.60107592,3126.7,3126.6,10.79930251]
[1641729279056,1.60107592,3126.7,3126.6,9.58528788]
[1641729280255,1.60107592,3126.7,3126.6,10.8005146]
[1641729280706,1.60107592,3126.7,3126.6,9.58528788]
[1641729284870,0.00113685,3126.9,3126.6,9.58528788]
[1641729285667,0.00113685,3126.9,3126.7,1.21691441]
[1641729286268,0.00113685,3126.9,3126.8,7.26691441]
[1641729286769,0.00113685,3126.9,3126.8,1.21691441]
[1641729286969,0.00113685,3126.9,3126.7,1.21691441]
[1641729288234,7.97994,3126.8,3126.7,1.21691441]
[1641729288634,8.97994,3126.8,3126.7,1.21691441]
[1641729288833,9.27994,3126.8,3126.7,1.21691441]
[1641729289236,9.27994,3126.8,3126.5,0.00113685]
[1641729289435,1.0,3126.7,3126.5,0.00113685]
[1641729289637,0.8801263,3126.6,3126.4,0.00170527]
[1641729290436,1.8801263,3126.6,3126.4,0.00170527]
[1641729290635,0.8001827,3126.5,3126.2,0.00284212]
[1641729290835,0.8002,3126.4,3126.2,0.67291375]
[1641729291037,0.8002,3126.4,3126.2,0.00284212]
[1641729291235,0.8002,3126.4,3126.3,0.00227369]
[1641729291436,1.60039,3126.4,3126.1,0.00341054]
[1641729291635,1.60042,3126.4,3126.1,0.00341054]
[1641729291838,1.6004153,3126.3,3126.1,0.00341054]
[1641729292463,1.60043,3126.3,3126.1,1.22032495]
[1641729292861,0.80022,3126.3,3126.2,0.00284212]
[1641729294265,0.07996,3126.6,3126.2,0.00284212]
[1641729294564,1.0,3126.7,3126.2,0.00284212]
[1641729294966,1.07996,3126.8,3126.2,0.00284212]
[1641729295166,1.07996,3126.8,3126.2,1.21975653]
[1641729295364,1.6002296,3126.6,3126.2,1.21975653]
[1641729295571,1.6002296,3126.6,3126.3,0.00227369]
[1641729296011,0.80009,3126.6,3126.3,0.00227369]
[1641729296311,1.0,3126.7,3126.3,0.00227369]
[1641729296509,0.07996,3126.8,3126.3,0.00227369]
[1641729296712,0.07996,3126.8,3126.2,0.00284212]
[1641729296912,1.60121685,3126.9,3126.2,0.00284212]
[1641729297114,1.60121685,3126.9,3126.2,1.21975653]
[1641729297312,0.00113685,3126.9,3126.2,1.21975653]
[1641729297513,0.00113685,3126.9,3126.3,0.00227369]
[1641729297720,0.00113685,3126.9,3126.4,1.21691441]
[1641729298116,0.00113685,3126.9,3126.5,0.00113685]
[1641729299468,0.00113685,3126.9,3126.6,1.33801707]
[1641729299759,0.00113685,3126.9,3126.7,0.07994]
[1641729299959,0.79995,3127.1,3126.7,0.07994]
[1641729300162,2.81086837,3127.3,3126.7,2.72625264]
[1641729300363,0.00170527,3127.0,3126.7,2.72625264]
[1641729300561,0.00170527,3127.0,3126.6,1.41795707]
[1641729300762,0.00113685,3126.9,3126.6,1.71795707]
[1641729300960,0.00113685,3126.9,3126.6,1.41795707]
[1641729301260,0.00284212,3127.2,3126.7,2.72625264]
[1641729301459,0.00284212,3127.2,3126.7,3.94316705]
[1641729301659,0.00227369,3127.1,3126.7,3.94316705]
[1641729301859,0.00227369,3127.1,3126.8,1.21691441]
[1641729302061,0.00284212,3127.2,3126.8,1.21691441]
[1641729302460,0.00227369,3127.1,3126.9,2.72625264]
[1641729302662,0.04757648,3127.4,3126.9,2.72625264]
[1641729302963,0.00113685,3127.3,3126.9,2.72625264]
[1641729303208,0.00113685,3127.3,3126.8,3.94316705]
[1641729303409,0.00113685,3127.3,3126.8,6.0950161]
[1641729303709,0.00113685,3127.3,3127.1,0.62623924]
[1641729305210,0.00113685,3127.3,3127.2,2.72625264]
[1641729306413,1.60190522,3127.3,3127.2,2.72625264]
[1641729307357,1.60190522,3127.3,3127.2,8.92625264]
[1641729307557,1.60190522,3127.3,3127.2,2.72625264]
[1641729307958,1.60190522,3127.3,3127.2,6.23286323]
[1641729308358,0.00113685,3127.3,3127.2,19.77375264]
[1641729309357,0.00113685,3127.3,3127.2,23.86254886]
[1641729311326,6.16,3128.0,3127.3,18.05]
[1641729311525,6.169,3128.6,3127.6,0.79958]
[1641729311727,0.00341054,3127.9,3127.6,0.79958]
[1641729311929,6.169,3128.6,3127.6,1.09958]
[1641729312125,6.169,3128.6,3127.7,8.1725306]
[1641729312326,0.00341054,3128.5,3128.1,1.11854306]
[1641729312727,6.169,3128.6,3128.1,1.11854306]
[1641729312728,0.00284212,3128.4,3128.1,1.11854306]
[1641729313128,0.00227369,3128.3,3128.1,1.11854306]
[1641729313530,0.00170527,3128.2,3127.7,0.00113685]
[1641729313929,0.00113685,3128.1,3127.7,0.00113685]
[1641729314229,6.7682968,3128.6,3127.6,2.26711184]
[1641729314230,0.00284212,3128.4,3127.6,2.26711184]
[1641729314660,5.169,3128.6,3127.7,2.72606153]
[1641729314661,0.00227369,3128.3,3127.7,2.72606153]
[1641729314860,0.00227369,3128.3,3127.8,1.99174619]
[1641729315159,0.00170527,3128.2,3128.0,1.30592325]
[1641729315560,0.00113685,3128.1,3127.8,0.3]
[1641729316065,0.00227369,3128.3,3128.1,2.72492468]
[1641729316461,0.00170527,3128.2,3128.1,3.56062468]
[1641729316661,0.00170527,3128.2,3128.1,0.8357]
[1641729316861,0.00170527,3128.2,3128.1,1.1357]
[1641729317463,0.00170527,3128.2,3128.1,3.86062468]
[1641729317765,0.00170527,3128.2,3128.1,4.43602796]
[1641729319113,0.00170527,3128.2,3128.1,4.13602796]
[1641729319914,0.00170527,3128.2,3128.1,1.41110328]
[1641729320115,0.00170527,3128.2,3128.1,0.57540328]
[1641729320417,0.00170527,3128.2,3127.7,0.30113685]
[1641729320616,0.00170527,3128.2,3127.7,0.00113685]
[1641729320819,0.00113685,3128.1,3127.7,0.00113685]
[1641729321015,0.00113685,3128.1,3127.5,0.00227369]
[1641729321321,1.60017922,3128.4,3127.5,0.00227369]
[1641729321323,1.60017922,3128.4,3127.9,0.62737095]
[1641729321324,0.00227369,3128.3,3127.9,0.62737095]
[1641729321517,0.80193929,3128.3,3127.9,0.62737095]
[1641729321717,0.00170527,3128.2,3127.9,0.62737095]
[1641729322163,0.00113685,3128.1,3127.9,0.62737095]
[1641729322564,0.00170527,3128.2,3127.9,0.62737095]
[1641729322864,0.00113685,3128.1,3127.9,0.62737095]
[1641729323263,0.00170527,3128.2,3127.9,0.62737095]
[1641729323664,0.00113685,3128.1,3127.9,0.62737095]
[1641729324165,0.00170527,3128.2,3127.9,0.62737095]
[1641729324666,0.00113685,3128.1,3127.9,0.62737095]
[1641729325065,0.00170527,3128.2,3127.9,0.62737095]
[1641729325466,0.00113685,3128.1,3127.9,0.62737095]
[1641729325913,0.00170527,3128.2,3127.9,0.62737095]
[1641729326317,0.00113685,3128.1,3127.9,0.62737095]
[1641729326712,0.00170527,3128.2,3127.9,0.62737095]
[1641729327112,2.39983922,3128.4,3127.9,0.62737095]
[1641729327113,0.00113685,3128.1,3127.9,0.62737095]
[1641729327513,0.00227369,3128.3,3127.9,0.62737095]
[1641729327915,0.00170527,3128.2,3127.9,0.62737095]
[1641729328215,0.00113685,3128.1,3127.9,0.62737095]
[1641729332166,5.96857,3128.6,3128.0,2.72470216]
[1641729332568,0.00113684,3128.3,3128.0,2.72470216]
[1641729333716,0.00113684,3128.3,3127.9,0.62737095]
[1641729334916,0.00113684,3128.3,3128.0,2.72470873]
[1641729335916,0.00113684,3128.3,3127.9,0.62737095]
[1641729336119,0.7996738,3128.2,3127.9,0.62737095]
[1641729337564,0.7996738,3128.2,3128.0,2.72483037]
[1641729339463,1.7996738,3128.2,3128.0,2.72483037]
[1641729339663,0.7996738,3128.2,3128.0,2.72483037]
[1641729339863,1.7996738,3128.2,3128.0,2.72483037]
[1641729340264,0.7997144,3128.0,3127.5,2.72710406]
[1641729340710,0.7997144,3128.0,3127.6,0.00284212]
[1641729341511,0.7997144,3128.0,3127.9,0.62917692]
[1641729341915,0.7997144,3128.0,3127.9,0.63031377]
[1641729342414,0.7997144,3128.0,3127.9,3.35514414]
[1641729343213,2.36361352,3128.2,3127.9,3.35514414]
[1641729343617,3.16334352,3128.2,3127.9,3.35514414]
[1641729344015,0.7997144,3128.0,3127.9,3.35514414]
[1641729344216,0.7997144,3128.0,3127.9,0.63031377]
[1641729344481,0.76410472,3128.2,3127.9,0.63031377]
[1641729344665,0.79974,3128.1,3127.9,0.63031377]
[1641729344865,0.76410472,3128.2,3127.9,0.63031377]
[1641729345264,1.5994113,3128.1,3127.9,0.63031377]
[1641729347266,39.54686694,3128.2,3127.9,0.63031377]
[1641729347668,8.99982,3128.0,3127.9,0.00113685]
[1641729348066,9.99982,3128.0,3127.6,0.00284212]
[1641729348314,3.3995706,3127.9,3127.6,0.00284212]
[1641729348517,2.5997106,3127.9,3127.6,0.00284212]
[1641729348713,5.7991517,3127.9,3127.6,0.00284212]
[1641729349919,0.79986,3127.8,3127.6,0.00284212]
[1641729350518,1.59972,3127.8,3127.6,0.00284212]
[1641729351027,2.3992006,3127.4,3127.3,0.32579259]
[1641729351223,2.3992006,3127.4,3127.2,0.5498947]
[1641729351420,3.4990403,3127.4,3127.2,0.5498947]
[1641729352460,0.59220442,3127.4,3127.2,0.5498947]
[1641729353764,1.39204412,3127.4,3127.2,0.5498947]
[1641729354163,2.19191412,3127.4,3126.9,2.44359676]
[1641729354364,1.5997295,3127.3,3126.9,2.44359676]
[1641729354662,1.8997295,3127.3,3127.0,0.00341054]
[1641729355469,1.8997295,3127.3,3126.9,0.00397896]
[1641729355717,0.7998648,3127.2,3127.0,0.62348787]
[1641729356119,0.7998648,3127.2,3127.1,0.00284212]
[1641729356421,1.8997295,3127.3,3127.1,0.00284212]
[1641729356821,1.8997295,3127.3,3127.1,1.92615969]
[1641729356822,1.5997295,3127.3,3127.1,1.92615969]
[1641729357021,1.5997295,3127.3,3127.1,1.96569265]
[1641729357222,1.5997295,3127.3,3127.2,0.00227369]
[1641729358625,1.5997295,3127.3,3127.2,1.93212829]
[1641729359481,1.5997295,3127.3,3127.2,4.65715487]
[1641729360271,1.5997295,3127.3,3127.2,2.72730027]
[1641729361274,1.5997295,3127.3,3127.2,0.00227369]
[1641729361676,1.5997295,3127.3,3127.2,2.72730027]
[1641729362276,1.5997295,3127.3,3127.2,4.73475742]
[1641729362475,1.5997295,3127.3,3127.2,2.00973084]
[1641729362882,1.5997295,3127.3,3127.2,0.00227369]
[1641729363312,1.5997295,3127.3,3127.2,2.72730027]
[1641729363915,1.5997295,3127.3,3127.2,0.00227369]
[1641729364515,1.5997295,3127.3,3127.2,2.72730027]
[1641729365115,1.5997295,3127.3,3127.2,0.00227369]
[1641729365515,1.5997295,3127.3,3127.2,2.72730027]
[1641729366120,1.5997295,3127.3,3127.2,0.00227369]
[1641729366318,1.5997295,3127.3,3127.2,1.95840671]
[1641729367373,1.5997295,3127.3,3127.2,2.72730027]
[1641729368376,1.5997295,3127.3,3127.2,0.00227369]
[1641729372019,1.5997295,3127.3,3127.2,2.72730027]
[1641729372625,1.5997295,3127.3,3127.2,4.73118976]
[1641729372822,1.89317924,3127.9,3127.2,3.52701027]
[1641729373026,0.3,3127.8,3127.3,1.93174977]
[1641729373223,0.3,3127.8,3127.3,1.93459188]
[1641729373424,0.3,3127.8,3127.5,0.68533856]
[1641729373623,0.3,3127.8,3127.5,1.90304053]
[1641729373624,1.0997069,3127.8,3127.5,1.90304053]
[1641729373924,1.0997069,3127.8,3127.6,0.00113684]
[1641729374123,1.0997069,3127.8,3127.6,2.72616342]
[1641729375778,1.0997069,3127.8,3127.6,1.28816342]
[1641729375972,1.0997069,3127.8,3127.5,0.68533856]
[1641729377175,1.0997069,3127.8,3127.5,1.83904053]
[1641729377376,1.8994769,3127.8,3127.5,1.83904053]
[1641729378220,1.0997069,3127.8,3127.5,1.83904053]
[1641729379220,1.0997069,3127.8,3127.5,0.62133856]
[1641729380121,1.0997069,3127.8,3127.5,1.83904053]
[1641729381827,0.7498,3127.7,3127.5,1.21770197]
[1641729382071,1.5495741,3127.7,3127.5,1.21770197]
[1641729382472,0.3,3127.6,3127.5,1.21770197]
[1641729383474,0.3,3127.6,3127.3,0.63342702]
[1641729383872,0.26451601,3127.8,3127.4,0.00113685]
[1641729384678,0.7997741,3127.7,3127.6,1.21948029]
[1641729385722,1.0997741,3127.7,3127.6,1.21948029]
[1641729388128,1.0997741,3127.7,3127.3,0.41404416]
[1641729388328,0.3,3127.6,3127.5,1.21829097]
[1641729389329,0.3,3127.6,3127.5,1.15429097]
[1641729390169,0.80147937,3127.7,3127.5,3.35481897]
[1641729390371,0.80147937,3127.7,3127.6,19.600528]
[1641729390578,0.80147937,3127.7,3127.6,17.4]
[1641729390973,0.00170527,3127.7,3127.6,21.48879622]
[1641729391376,0.00170527,3127.7,3127.6,22.66247175]
[1641729392272,0.00170527,3127.7,3127.6,18.21247175]
[1641729393213,52.48214071,3128.5,3127.8,0.79956]
[1641729393415,52.78214071,3128.5,3127.8,0.79956]
[1641729393616,0.00113685,3127.9,3127.8,0.79956]
[1641729394216,0.00113685,3127.9,3127.8,3.32063423]
[1641729395816,0.00113685,3127.9,3127.8,6.04521523]
[1641729397672,0.00113685,3127.9,3127.8,5.24565523]
[1641729405464,0.00113685,3127.9,3127.8,6.45417693]
[1641729405866,0.00113685,3127.9,3127.8,4.48695595]
[1641729409624,0.00113685,3127.9,3127.8,3.27843425]
[1641729409821,0.00113685,3127.9,3127.8,2.724581]
[1641729411022,0.30113685,3127.9,3127.8,2.724581]
[1641729411224,0.30113685,3127.9,3127.6,1.2085217]
[1641729411225,0.30113685,3127.9,3127.4,1.2085217]
[1641729411524,0.3,3127.6,3127.5,0.00113684]
[1641729411825,0.7998072,3127.8,3127.5,0.00113684]
[1641729412074,0.7998072,3127.8,3127.1,1.77249052]
[1641729412277,0.00113685,3127.7,3127.1,1.77249052]
[1641729412475,0.00113685,3127.7,3127.2,0.00170527]
[1641729412676,0.80087595,3127.7,3127.2,0.00170527]
[1641729412874,0.80087595,3127.7,3127.1,2.50993579]
[1641729413073,0.00227369,3127.6,3127.1,2.50993579]
[1641729413275,0.00227369,3127.6,3127.1,1.71019579]
[1641729413474,0.3,3127.6,3127.2,8.4]
[1641729413877,0.3,3127.8,3127.3,0.00113685]
[1641729414074,0.6366209,3128.0,3127.3,0.00113685]
[1641729414275,0.00170527,3127.8,3127.3,0.00113685]
[1641729414578,0.80084904,3127.7,3127.3,0.00113685]
[1641729414778,0.80084904,3127.7,3127.3,1.90098425]
[1641729414974,0.3,3127.6,3127.3,0.00113685]
[1641729415373,0.3,3127.6,3127.2,0.00170527]
[1641729417420,0.80084904,3127.7,3127.2,1.89216258]
[1641729417817,0.80084904,3127.7,3127.2,0.00170527]
[1641729419018,0.80084904,3127.7,3127.2,1.90032045]
[1641729419972,0.80084904,3127.7,3127.3,0.79969]
[1641729420170,0.80084904,3127.7,3127.6,0.73982563]
[1641729422373,0.00113684,3127.7,3127.6,1.95011871]
[1641729422771,0.00113684,3127.7,3127.6,0.73982563]
[1641729423216,0.00113684,3127.7,3127.6,7.39940921]
[1641729423816,0.00113684,3127.7,3127.6,6.18982563]
[1641729424417,1.06522285,3128.1,3127.6,0.73982563]
[1641729424816,0.00170527,3128.0,3127.5,0.10046563]
[1641729425016,0.00170527,3128.0,3127.6,0.68310051]
[1641729425219,0.00113685,3127.9,3127.6,0.68310051]
[1641729425716,0.00113685,3127.9,3127.7,1.14620789]
[1641729427167,0.00113685,3127.9,3127.6,0.68310051]
[1641729427367,0.80083505,3127.9,3127.6,0.68310051]
[1641729427569,0.3,3127.8,3127.6,0.68310051]
[1641729427968,0.00113685,3127.9,3127.6,0.68310051]
[1641729428569,0.7996583,3127.8,3127.6,0.68310051]
[1641729431119,0.7996583,3127.8,3127.2,2.44530203]
[1641729431321,0.7996583,3127.8,3127.2,3.24502203]
[1641729431520,0.7996583,3127.8,3127.3,0.00227369]
[1641729432322,1.43440293,3127.8,3127.3,3.31935609]
[1641729432723,0.3,3127.7,3127.4,0.00170527]
[1641729432926,1.0997562,3127.7,3127.4,0.00170527]
[1641729433124,1.0997562,3127.7,3127.3,0.00227369]
[1641729433524,1.0997562,3127.7,3127.3,2.72708169]
[1641729433724,0.3,3127.7,3127.3,3.28444473]
[1641729433924,0.42738776,3127.8,3127.4,0.00170527]
[1641729434125,0.80088685,3127.9,3127.4,0.00170527]
[1641729434126,0.00113685,3127.9,3127.4,0.00170527]
[1641729434326,0.7997562,3127.7,3127.4,0.00170527]
[1641729434566,0.00113685,3127.9,3127.4,0.00170527]
[1641729434766,0.00113685,3127.9,3127.5,0.79965]
[1641729434966,0.00113685,3127.9,3127.5,2.65397739]
[1641729435166,0.00113685,3127.9,3127.8,0.64971761]
[1641729435967,0.00113685,3127.9,3127.8,3.37452561]
[1641729436769,0.00113685,3127.9,3127.8,4.58680212]
[1641729438921,0.00113685,3127.9,3127.8,6.44336312]
[1641729439119,0.00113685,3127.9,3127.8,4.58680212]
[1641729439420,0.00113685,3127.9,3127.8,3.37452561]
[1641729440221,0.00113685,3127.9,3127.8,5.27241451]
[1641729441020,0.00113685,3127.9,3127.8,3.37452561]
[1641729441222,0.00113685,3127.9,3127.8,5.24080527]
[1641729441620,0.00113685,3127.9,3127.8,5.23683075]
[1641729444869,0.00113685,3127.9,3127.8,9.83683075]
[1641729445170,0.00113685,3127.9,3127.8,5.23683075]
[1641729445570,0.00113685,3127.9,3127.8,3.37452561]
[1641729445819,0.00113685,3127.9,3127.8,5.25245165]
[1641729447317,0.00113685,3127.9,3127.8,3.37452561]
[1641729447919,0.00113685,3127.9,3127.8,5.2186183]
[1641729448124,0.00113685,3127.9,3127.8,3.37452561]
[1641729448422,0.00113685,3127.9,3127.8,3.31052561]
[1641729448620,0.00113685,3127.9,3127.8,5.14965063]
[1641729448819,0.00113685,3127.9,3127.8,5.17157108]
[1641729449019,0.00113685,3127.9,3127.8,5.15672451]
[1641729449223,0.00113685,3127.9,3127.8,3.31052561]
[1641729451872,0.00113685,3127.9,3127.8,8.86052561]
[1641729453072,0.00113685,3127.9,3127.8,3.31052561]
[1641729453720,46.22012228,3128.3,3127.8,3.31052561]
[1641729453918,46.52012228,3128.3,3127.8,3.31052561]
[1641729454118,0.00113685,3128.1,3127.8,3.31052561]
[1641729454319,0.80076335,3128.1,3127.8,3.31052561]
[1641729455120,1.10076335,3128.1,3127.8,3.31052561]
[1641729455320,1.10076335,3128.1,3128.0,1.20935345]
[1641729455523,1.10077335,3128.1,3128.0,1.20935345]
[1641729456726,1.10077335,3128.1,3127.9,3.93416145]
[1641729456970,1.90047335,3128.1,3127.9,3.93416145]
[1641729457567,1.60047335,3128.1,3127.9,3.93416145]
[1641729457766,0.80077335,3128.1,3127.9,3.93416145]
[1641729457967,0.80077335,3128.1,3127.9,2.724808]
[1641729458367,1.60046335,3128.1,3127.9,2.724808]
[1641729458567,2.1512676,3128.0,3127.9,2.660808]
[1641729458767,2.1512676,3128.0,3127.4,0.00170527]
[1641729458768,6.2,3127.8,3127.4,0.00170527]
[1641729459070,6.2,3127.8,3127.4,0.00284212]
[1641729459071,2.0998549,3127.7,3127.4,0.00284212]
[1641729459267,2.8997749,3127.7,3127.4,0.00284212]
[1641729459468,2.91214713,3127.7,3127.4,0.00284212]
[1641729459766,5.95,3127.5,3127.4,0.00284212]
[1641729460167,7.25,3127.5,3127.4,0.00284212]
[1641729460367,7.25,3127.5,3127.1,0.00454739]
[1641729460726,4.9996343,3127.4,3127.1,0.00454739]
[1641729460928,0.3,3127.3,3127.1,0.00454739]
[1641729461926,4.10607949,3127.3,3127.1,0.00454739]
[1641729462128,2.22915925,3127.2,3127.1,0.00454739]
[1641729462328,1.89988,3127.3,3127.1,0.00454739]
[1641729463530,6.88674579,3127.2,3127.1,0.00454739]
[1641729463730,6.88674579,3127.2,3126.5,0.00795793]
[1641729463930,3.2002128,3126.9,3126.5,2.45155469]
[1641729464131,0.80006,3126.9,3126.5,2.45155469]
[1641729464335,1.3,3126.8,3126.6,0.0073895]
[1641729464572,0.3,3126.8,3126.6,0.0073895]
[1641729464870,0.62021977,3126.8,3126.4,0.00852635]
[1641729465068,0.80023,3126.6,3126.4,0.00852635]
[1641729465270,2.4006853,3126.6,3126.4,0.00852635]
[1641729465469,2.6251853,3126.6,3126.4,0.00852635]
[1641729465669,3.6251853,3126.6,3126.4,0.00852635]
[1641729465868,3.6251853,3126.6,3126.0,0.01080004]
[1641729466070,1.2245,3126.6,3126.0,0.01080004]
[1641729466277,2.400767,3126.3,3126.0,0.01080004]
[1641729466472,2.49369962,3126.2,3126.0,0.01080004]
[1641729466672,2.79369962,3126.2,3126.0,0.01080004]
[1641729466874,2.79369962,3126.2,3125.8,0.01193689]
[1641729466875,3.79369962,3126.2,3125.8,0.01193689]
[1641729467072,1.6005704,3126.1,3125.8,0.01193689]
[1641729467272,1.6005704,3126.1,3125.9,0.57010011]
[1641729467472,0.3,3126.0,3125.8,0.68524891]
[1641729467671,0.30113685,3126.0,3125.8,0.68524891]
[1641729468073,0.30113685,3126.0,3125.8,0.62124891]
[1641729468932,0.30113685,3126.0,3125.8,1.82960735]
[1641729469322,0.00113685,3126.0,3125.9,13.46717404]
[1641729469527,0.00113685,3126.0,3125.9,22.11847404]
[1641729470325,0.00113685,3126.0,3125.9,27.00727026]
[1641729470526,0.80004,3127.0,3126.0,14.4]
[1641729470728,0.7999787,3126.9,3126.1,2.02747528]
[1641729471129,0.3,3126.8,3126.1,2.02747528]
[1641729471525,0.00397896,3126.7,3126.3,1.20477019]
[1641729471732,0.00397896,3126.7,3126.4,1.70446116]
[1641729471972,0.00341054,3126.6,3126.4,1.70446116]
[1641729472373,0.00284211,3126.5,3126.4,4.75005814]
[1641729472572,0.00284211,3126.5,3126.4,2.90923135]
[1641729473575,0.00284211,3126.5,3126.4,8.40923135]
[1641729473775,0.00284211,3126.5,3126.4,10.32038102]
[1641729474575,4.90814703,3127.4,3126.4,4.82038102]
[1641729474782,0.3,3127.0,3126.5,1.82703633]
[1641729474976,0.00284212,3127.0,3126.4,2.90923135]
[1641729475175,0.799977,3126.9,3126.4,0.60156781]
[1641729475576,0.30170527,3126.8,3126.4,0.60156781]
[1641729476018,0.00113685,3126.7,3126.4,0.60156781]
[1641729477518,0.00113685,3126.7,3126.4,0.53756781]
[1641729478320,0.00113685,3126.7,3126.6,10.50795564]
[1641729478920,0.00113685,3126.7,3126.6,13.23333383]
[1641729479570,0.00113685,3126.7,3126.6,2.72537819]
[1641729480571,0.00113685,3126.7,3126.5,2.72537819]
[1641729480774,0.00113685,3126.7,3126.6,6.15386924]
[1641729481573,0.00113685,3126.7,3126.5,2.72537819]
[1641729481973,0.00113685,3126.7,3126.6,2.72537819]
[1641729482376,0.00113685,3126.7,3126.6,6.67537819]
[1641729482776,0.00113685,3126.7,3126.6,3.95]
[1641729483416,0.00113685,3126.7,3126.6,6.67537819]
[1641729483815,0.00113685,3126.7,3126.6,8.02509143]
[1641729485121,0.00113685,3126.7,3126.6,9.8517875]
[1641729486978,0.00113685,3126.7,3126.6,8.4117875]
[1641729488280,0.00113685,3126.7,3126.6,13.1477875]
[1641729488481,0.00113685,3126.7,3126.6,8.3477875]
[1641729489281,0.00113685,3126.7,3126.6,12.5477875]
[1641729489483,0.00113685,3126.7,3126.6,13.75164367]
[1641729489680,0.00113685,3126.7,3126.6,9.55164367]
[1641729490826,0.00113685,3126.7,3126.6,7.7249476]
[1641729492622,0.00113685,3126.7,3126.6,2.72537819]
[1641729493420,0.00113685,3126.7,3126.5,2.72537819]
[1641729493818,0.00113685,3126.7,3126.6,2.72537819]
[1641729494020,2.89122616,3126.7,3126.6,2.72537819]
[1641729494222,10.67964864,3126.7,3126.6,2.72537819]
[1641729494489,0.67964864,3126.7,3126.6,2.72537819]
[1641729494693,1.67964864,3126.7,3126.3,1.20385617]
[1641729494892,1.67964864,3126.7,3126.1,0.57326957]
[1641729494893,2.49164864,3126.7,3126.1,0.57326957]
[1641729495093,0.80025,3126.3,3126.1,0.57326957]
[1641729495289,1.10025,3126.3,3126.2,0.00170527]
[1641729496089,1.10025,3126.3,3125.8,0.00397896]
[1641729496294,1.600616,3126.1,3125.8,0.00397896]
[1641729496490,1.900616,3126.1,3125.8,0.00397896]
[1641729496692,1.900616,3126.1,3125.7,0.00454739]
[1641729497089,1.900616,3126.1,3125.8,0.77869271]
[1641729497288,0.59326896,3126.2,3125.8,0.77869271]
[1641729497490,1.59326896,3126.2,3125.9,0.00341054]
[1641729497689,1.59326896,3126.2,3125.6,1.74459342]
[1641729497891,0.80026,3126.0,3125.6,1.74459342]
[1641729498088,0.80026,3126.0,3125.7,0.00113685]
[1641729498325,1.6006,3126.0,3125.9,0.73347403]
[1641729498523,1.6006,3126.0,3125.7,0.00113685]
[1641729498921,1.6006,3126.0,3125.6,1.14099302]
[1641729499221,0.80035,3125.8,3125.6,1.14099302]
[1641729499622,1.10035,3125.8,3125.0,1.2434]
[1641729499822,1.10035,3125.8,3125.4,0.7041373]
[1641729500322,1.10035,3125.8,3125.3,0.00227369]
[1641729500323,1.6007807,3125.5,3125.3,0.00227369]
[1641729500523,1.9007807,3125.5,3125.3,0.00227369]
[1641729501323,1.1003707,3125.5,3125.1,0.61244906]
[1641729501522,1.6008557,3125.4,3125.1,0.61244906]
[1641729501721,3.10641119,3125.4,3125.1,0.61244906]
[1641729501981,0.8004257,3125.4,3125.1,0.61244906]
[1641729502184,0.3,3125.5,3125.1,0.61244906]
[1641729502381,0.3,3125.3,3125.1,0.61244906]
[1641729502582,0.80043,3125.4,3125.1,0.61244906]
[1641729502783,0.3,3125.5,3125.1,0.61244906]
[1641729502984,0.3,3125.4,3125.1,0.61244906]
[1641729503184,0.3,3125.5,3125.1,0.61244906]
[1641729503384,1.1003297,3125.6,3125.1,0.61244906]
[1641729503786,0.00113685,3125.5,3125.1,0.61244906]
[1641729504583,0.00113685,3125.5,3125.2,1.37978343]
[1641729504783,3.39848701,3126.5,3125.2,1.37978343]
[1641729504984,2.14064047,3126.4,3125.3,0.00113685]
[1641729505287,1.60063,3125.9,3125.6,0.00341055]
[1641729505487,1.60063,3125.9,3125.3,0.00113685]
[1641729505735,0.30170527,3125.8,3125.7,1.22397614]
[1641729507426,0.30170527,3125.8,3125.6,0.7142545]
[1641729507828,0.00113684,3125.7,3125.3,0.70170934]
[1641729508028,0.00284211,3125.7,3125.3,0.70170934]
[1641729508229,0.00227369,3125.6,3125.3,0.70170934]
[1641729508428,0.80263189,3125.6,3125.3,0.70170934]
[1641729508628,0.00170527,3125.5,3125.4,1.28007823]
[1641729509030,0.00170527,3125.5,3125.4,12.91607823]